Body,Body Name,Date,TransNo,Amount � (Excl VAT),Supplier name,Description,Expense Area,Expense Type,Expense Code,
http://opendatacommunities.org/id/london-borough-council/sutton,London Borough of Sutton,18/07/2018,1258796,77.49 , AMAZON EU,GAZEBO,Peoples Services Directorate,Education Equipment,F009,
http://opendatacommunities.org/id/london-borough-council/sutton,London Borough of Sutton,18/07/2018,1258796,74.98 , AMAZON EU,TOYS AND EQUIPMENT,Peoples Services Directorate,Education Equipment,F009,
http://opendatacommunities.org/id/london-borough-council/sutton,London Borough of Sutton,17/07/2018,1258796,2.67 , AMAZON UK MARKETPLACE,FACE PAINT,Peoples Services Directorate,Education Equipment,F009,
http://opendatacommunities.org/id/london-borough-council/sutton,London Borough of Sutton,17/07/2018,1258796,31.93 , AMAZON UK MARKETPLACE,TOYS,Peoples Services Directorate,Education Equipment,F009,
http://opendatacommunities.org/id/london-borough-council/sutton,London Borough of Sutton,17/07/2018,1258796,14.84 , AMAZON UK MARKETPLACE,TOYS,Peoples Services Directorate,Education Equipment,F009,
http://opendatacommunities.org/id/london-borough-council/sutton,London Borough of Sutton,17/07/2018,1258796,7.62 , AMAZON UK MARKETPLACE,TOYS,Peoples Services Directorate,Education Equipment,F009,
http://opendatacommunities.org/id/london-borough-council/sutton,London Borough of Sutton,17/07/2018,1258796,1.57 , AMAZON UK MARKETPLACE,TOYS,Peoples Services Directorate,Education Equipment,F009,
http://opendatacommunities.org/id/london-borough-council/sutton,London Borough of Sutton,17/07/2018,1258796,2.67 , AMAZON UK MARKETPLACE,FACE PAINT,Peoples Services Directorate,Education Equipment,F009,
http://opendatacommunities.org/id/london-borough-council/sutton,London Borough of Sutton,17/07/2018,1258796,5.24 , AMAZON UK MARKETPLACE,TOYS,Peoples Services Directorate,Education Equipment,F009,
http://opendatacommunities.org/id/london-borough-council/sutton,London Borough of Sutton,16/07/2018,1258796,2.92 , AMAZON UK MARKETPLACE,FACE PAINT,Peoples Services Directorate,Education Equipment,F009,
http://opendatacommunities.org/id/london-borough-council/sutton,London Borough of Sutton,18/07/2018,1258796,75.00 , AMAZON EU,KINDLE,Peoples Services Directorate,Education Equipment,F009,
http://opendatacommunities.org/id/london-borough-council/sutton,London Borough of Sutton,23/07/2018,1258796,133.07 , SAINSBURYS TO YOU 0052,SAINSBURYS SHOP,Peoples Services Directorate,Provisions - General,F150,
http://opendatacommunities.org/id/london-borough-council/sutton,London Borough of Sutton,09/07/2018,1258796,22.12 , SAINSBURYS 2006,SAINSBURYS SHOP,Peoples Services Directorate,Provisions - General,F150,
http://opendatacommunities.org/id/london-borough-council/sutton,London Borough of Sutton,16/07/2018,1258796,20.82 , ASDA SUPERSTORE,ASDA SHOP,Peoples Services Directorate,Refreshments,F155,
http://opendatacommunities.org/id/london-borough-council/sutton,London Borough of Sutton,03/07/2018,1258796,92.87 , SAINSBURYS 2331,SAINSBURYS SHOP,Peoples Services Directorate,Refreshments,F155,
http://opendatacommunities.org/id/london-borough-council/sutton,London Borough of Sutton,19/07/2018,1258796,22.50 , ANSCO ARENA LTD,PARKING AT O2 ARENA,Peoples Services Directorate,Staff Parking,A710,
http://opendatacommunities.org/id/london-borough-council/sutton,London Borough of Sutton,17/07/2018,1258796,339.00 , STUBHUB SERVICE SARL,STUB HUB BOXING TICKETS,Peoples Services Directorate,Personal Requisites,F106,
http://opendatacommunities.org/id/london-borough-council/sutton,London Borough of Sutton,17/07/2018,1258796,113.00 , STUBHUB SERVICE SARL,BOXING TICKETS,Peoples Services Directorate,Personal Requisites,F106,
http://opendatacommunities.org/id/london-borough-council/sutton,London Borough of Sutton,06/07/2018,1258796,141.86 , HOTEL ON BOOKING.COM,PURCHASE OF ACCOMADATION FOR STAFF WITHIN THE LCT TEAM.,Peoples Services Directorate,Hotel Accomodation,A512,
http://opendatacommunities.org/id/london-borough-council/sutton,London Borough of Sutton,09/07/2018,1258796,3.90 , BOOKING.COM,FE FEE FOR BOOKING.COM ACCOMADATION IN IRELAND,Peoples Services Directorate,Travelling and Subsistence Allowances,A530,
http://opendatacommunities.org/id/london-borough-council/sutton,London Borough of Sutton,04/07/2018,1258796,346.60 , AER LINGUS,415.92 - A530 0304 9999 - FLIGHT FOR KF AND SR - AIRLINGUS,Peoples Services Directorate,Travelling and Subsistence Allowances,A530,
http://opendatacommunities.org/id/london-borough-council/sutton,London Borough of Sutton,23/07/2018,1258796,291.75 , ALLPAY  METROPOLITAN H,METROPOLITAN RENT,Peoples Services Directorate,Rent - General,D650,
http://opendatacommunities.org/id/london-borough-council/sutton,London Borough of Sutton,23/07/2018,1258796,565.00 , SUTTON APPLIANCES,EURONICS WHITE GOODS,Peoples Services Directorate,Domestic Supplies,D801,
http://opendatacommunities.org/id/london-borough-council/sutton,London Borough of Sutton,13/07/2018,1258796,5.28 , DELICE DE FRANCE,KP SOLS ASSESSMENT ACTIVITY,Peoples Services Directorate,Personal Requisites,F106,
http://opendatacommunities.org/id/london-borough-council/sutton,London Borough of Sutton,11/07/2018,1258796,21.96 , WWW.SECURE-PAYMENT-SER,KB PRISON MONEY,Peoples Services Directorate,Personal Requisites,F106,
http://opendatacommunities.org/id/london-borough-council/sutton,London Borough of Sutton,10/07/2018,1258796,13.33 , ASDA SUPERSTORE,KB UNDERWEAR PRISON,Peoples Services Directorate,Personal Requisites,F106,
http://opendatacommunities.org/id/london-borough-council/sutton,London Borough of Sutton,10/07/2018,1258796,10.82 , ARGOS LTD,KB CD PLAYER PRISON,Peoples Services Directorate,Personal Requisites,F106,
http://opendatacommunities.org/id/london-borough-council/sutton,London Borough of Sutton,06/07/2018,1258796,19.96 , WH SMITH,KB PRISON STATIONERY,Peoples Services Directorate,Personal Requisites,F106,
http://opendatacommunities.org/id/london-borough-council/sutton,London Borough of Sutton,29/06/2018,1258796,7.32 , MCDONALDS,MA ACTIVITY,Peoples Services Directorate,Personal Requisites,F106,
http://opendatacommunities.org/id/london-borough-council/sutton,London Borough of Sutton,26/06/2018,1258796,84.17 , PRIMARK,KB PRISON CLOTHES SUMMER PRIMARK,Peoples Services Directorate,Personal Requisites,F106,
http://opendatacommunities.org/id/london-borough-council/sutton,London Borough of Sutton,21/07/2018,1258796,22.49 , SPORTSDIRECT 252,KB PRISON TRAINERS,Peoples Services Directorate,Personal Requisites,F106,
http://opendatacommunities.org/id/london-borough-council/sutton,London Borough of Sutton,19/07/2018,1258796,5.00 , MITIE HEALTHCARE,MA ACT FOLLOWING NON MOLESTATION PAPERWORK SUBWAY ST HELIER HOSPITAL,Peoples Services Directorate,Personal Requisites,F106,
http://opendatacommunities.org/id/london-borough-council/sutton,London Borough of Sutton,13/07/2018,1258796,3.42 , TESCO STORES 5130,KB SOLS ASSESSMENT ACITIVITY,Peoples Services Directorate,Personal Requisites,F106,
http://opendatacommunities.org/id/london-borough-council/sutton,London Borough of Sutton,25/06/2018,1258796,150.50 , TVLICENSING.CO.UK,TV LICENCE FOR YP FROM LCT,Peoples Services Directorate,Personal Requisites,F106,
http://opendatacommunities.org/id/london-borough-council/sutton,London Borough of Sutton,09/07/2018,1258796,10.80 , LIVERPOOL CITY COUNCIL,BIRTH CERT,Peoples Services Directorate,Personal Requisites,F106,
http://opendatacommunities.org/id/london-borough-council/sutton,London Borough of Sutton,26/06/2018,1258796,515.82 , CURRYS ONLINE,CURRY'S PURCHASES,Peoples Services Directorate,Personal Requisites,F106,
http://opendatacommunities.org/id/london-borough-council/sutton,London Borough of Sutton,26/06/2018,1258796,137.43 , WWW.ARGOS.CO.UK,ARGOS,Peoples Services Directorate,Personal Requisites,F106,
http://opendatacommunities.org/id/london-borough-council/sutton,London Borough of Sutton,05/07/2018,1258796,300.00 , WM MORRISONS,MORRISONS FOOD VOUCHERS,Peoples Services Directorate,C.C.A Travel & Subsistance,H212,
http://opendatacommunities.org/id/london-borough-council/sutton,London Borough of Sutton,13/07/2018,1258796,34.50 , NATIONAL EXPRESS LIMIT,BUS TICKET PURCHASED FOR LCT TEAM CLIENT,Peoples Services Directorate,C.C.A Travel & Subsistance,H212,
http://opendatacommunities.org/id/london-borough-council/sutton,London Borough of Sutton,13/07/2018,1258796,34.50 , NATIONAL EXPRESS LIMIT,TICKET BOUGHT FOR CLIENT N LCT TEAM,Peoples Services Directorate,C.C.A Travel & Subsistance,H212,
http://opendatacommunities.org/id/london-borough-council/sutton,London Borough of Sutton,04/07/2018,1258796,19.94 , AMAZON EU,AMAZON PURCHASE,Peoples Services Directorate,Client Care/Assistance,H301,
http://opendatacommunities.org/id/london-borough-council/sutton,London Borough of Sutton,09/07/2018,1258796,104.00 , NHSBSA PPC,NHS PRESCRIPTION,Peoples Services Directorate,Client Care/Assistance,H301,
http://opendatacommunities.org/id/london-borough-council/sutton,London Borough of Sutton,06/07/2018,1258796,679.13 , SUTTON APPLIANCES,RA SETTING UP,Peoples Services Directorate,Set Up Costs - Children Leaving Care,H336,
http://opendatacommunities.org/id/london-borough-council/sutton,London Borough of Sutton,29/06/2018,1258796,25.00 , TESCO STORE 3235,MA SETTING UP,Peoples Services Directorate,Set Up Costs - Children Leaving Care,H336,
http://opendatacommunities.org/id/london-borough-council/sutton,London Borough of Sutton,06/07/2018,1258796,150.50 , TVLICENSING.CO.UK,TV LICENCE PURCHASE FOR CIENT WITHIN LCT,Peoples Services Directorate,Set Up Costs - Children Leaving Care,H336,
http://opendatacommunities.org/id/london-borough-council/sutton,London Borough of Sutton,26/06/2018,1258796,(29.99), CURRYS ONLINE,REFUND,Peoples Services Directorate,Set Up Costs - Children Leaving Care,H336,
http://opendatacommunities.org/id/london-borough-council/sutton,London Borough of Sutton,20/07/2018,1258796,(242.94), WWW.ARGOS.CO.UK,REFUND- BED FOR CLIENT,Peoples Services Directorate,Payments Under the Child Care Act 1980,H210,
http://opendatacommunities.org/id/london-borough-council/sutton,London Borough of Sutton,18/07/2018,1258796,202.45 , WWW.ARGOS.CO.UK,BED FOR CLIENT - RAS,Peoples Services Directorate,Payments Under the Child Care Act 1980,H210,
http://opendatacommunities.org/id/london-borough-council/sutton,London Borough of Sutton,13/07/2018,1258796,12.00 , LB CROYDON,BIRTH CERTS PURCHASED FROM CROYDON COUNCIL,Peoples Services Directorate,Travelling and Subsistence Allowances,A530,
http://opendatacommunities.org/id/london-borough-council/sutton,London Borough of Sutton,13/07/2018,1258796,20.00 , OYSTER AUTO-TOP UP,OYSTER TOP UP,Peoples Services Directorate,Travelling and Subsistence Allowances,A530,
http://opendatacommunities.org/id/london-borough-council/sutton,London Borough of Sutton,12/07/2018,1258796,20.00 , OYSTER AUTO-TOP UP,OYSTER TOP UP ON LINE,Peoples Services Directorate,Travelling and Subsistence Allowances,A530,
http://opendatacommunities.org/id/london-borough-council/sutton,London Borough of Sutton,11/07/2018,1258796,20.00 , OYSTER AUTO-TOP UP,OYSTER TOP UP ON LINE,Peoples Services Directorate,Travelling and Subsistence Allowances,A530,
http://opendatacommunities.org/id/london-borough-council/sutton,London Borough of Sutton,11/07/2018,1258796,(10.00), OYSTER ONLINE,OYSTER TOP UP ON LINE,Peoples Services Directorate,Travelling and Subsistence Allowances,A530,
http://opendatacommunities.org/id/london-borough-council/sutton,London Borough of Sutton,09/07/2018,1258796,16.40 , WWW.WIGHTLINK.CO.UK,WGHTLNK TRAVEL BOUGHT FOR LAC TEAM MEMBER FOR LAC REVIEW.,Peoples Services Directorate,Travelling and Subsistence Allowances,A530,
http://opendatacommunities.org/id/london-borough-council/sutton,London Borough of Sutton,07/07/2018,1258796,20.00 , OYSTER AUTO-TOP UP,OYSTER TOP UP ON LINE,Peoples Services Directorate,Travelling and Subsistence Allowances,A530,
http://opendatacommunities.org/id/london-borough-council/sutton,London Borough of Sutton,06/07/2018,1258796,20.00 , OYSTER AUTO-TOP UP,OYSTER TOP UP,Peoples Services Directorate,Travelling and Subsistence Allowances,A530,
http://opendatacommunities.org/id/london-borough-council/sutton,London Borough of Sutton,04/07/2018,1258796,20.00 , OYSTER AUTO-TOP UP,OYSTER TOP UP,Peoples Services Directorate,Travelling and Subsistence Allowances,A530,
http://opendatacommunities.org/id/london-borough-council/sutton,London Borough of Sutton,04/07/2018,1258796,10.00 , OYSTER ONLINE,OYSTER ON LINE TOP UP,Peoples Services Directorate,Travelling and Subsistence Allowances,A530,
http://opendatacommunities.org/id/london-borough-council/sutton,London Borough of Sutton,04/07/2018,1258796,10.00 , OYSTER ONLINE,OYSTER ON LINE TOP UP,Peoples Services Directorate,Travelling and Subsistence Allowances,A530,
http://opendatacommunities.org/id/london-borough-council/sutton,London Borough of Sutton,04/07/2018,1258796,10.00 , OYSTER ONLINE,OYSTER ON LINE TOP UP,Peoples Services Directorate,Travelling and Subsistence Allowances,A530,
http://opendatacommunities.org/id/london-borough-council/sutton,London Borough of Sutton,03/07/2018,1258796,12.30 , WWW.WIGHTLINK.CO.UK,WIGHLINK FOR LAC VISIT,Peoples Services Directorate,Travelling and Subsistence Allowances,A530,
http://opendatacommunities.org/id/london-borough-council/sutton,London Borough of Sutton,29/06/2018,1258796,20.00 , OYSTER AUTO-TOP UP,OYSTER TOP UP,Peoples Services Directorate,Travelling and Subsistence Allowances,A530,
http://opendatacommunities.org/id/london-borough-council/sutton,London Borough of Sutton,28/06/2018,1258796,20.00 , OYSTER AUTO-TOP UP,OYSTER TOP UP,Peoples Services Directorate,Travelling and Subsistence Allowances,A530,
http://opendatacommunities.org/id/london-borough-council/sutton,London Borough of Sutton,28/06/2018,1258796,20.00 , OYSTER AUTO-TOP UP,OYSTER TOP UP,Peoples Services Directorate,Travelling and Subsistence Allowances,A530,
http://opendatacommunities.org/id/london-borough-council/sutton,London Borough of Sutton,26/06/2018,1258796,10.00 , LBSUTTON,BIRTH CERTS,Peoples Services Directorate,Travelling and Subsistence Allowances,A530,
http://opendatacommunities.org/id/london-borough-council/sutton,London Borough of Sutton,18/07/2018,1258796,20.00 , OYSTER AUTO-TOP UP,OYSTER TOP UP,Peoples Services Directorate,Travelling and Subsistence Allowances,A530,
http://opendatacommunities.org/id/london-borough-council/sutton,London Borough of Sutton,18/07/2018,1258796,20.00 , OYSTER AUTO-TOP UP,OYSTER TOP UP,Peoples Services Directorate,Travelling and Subsistence Allowances,A530,
http://opendatacommunities.org/id/london-borough-council/sutton,London Borough of Sutton,16/07/2018,1258796,254.00 , HM PASSPORT,PASSPORT APP PURCHASED FOR LAC CLIENT,Peoples Services Directorate,Travelling and Subsistence Allowances,A530,
http://opendatacommunities.org/id/london-borough-council/sutton,London Borough of Sutton,13/07/2018,1258796,254.00 , HM PASSPORT,PASSPORT APP FOR LAC CLIENT,Peoples Services Directorate,Travelling and Subsistence Allowances,A530,
http://opendatacommunities.org/id/london-borough-council/sutton,London Borough of Sutton,13/07/2018,1258796,127.00 , HM PASSPORT,PASSPORT APP FOR LAC CLIENT,Peoples Services Directorate,Travelling and Subsistence Allowances,A530,
http://opendatacommunities.org/id/london-borough-council/sutton,London Borough of Sutton,13/07/2018,1258796,127.00 , HM PASSPORT,PASSPORT APP FOR LAC CLIENT,Peoples Services Directorate,Travelling and Subsistence Allowances,A530,
http://opendatacommunities.org/id/london-borough-council/sutton,London Borough of Sutton,09/07/2018,1258796,12.30 , WWW.WIGHTLINK.CO.UK,WIGHTLINK TRAVEL,Peoples Services Directorate,Travelling and Subsistence Allowances,A530,
http://opendatacommunities.org/id/london-borough-council/sutton,London Borough of Sutton,20/07/2018,1258796,20.00 , OYSTER AUTO-TOP UP,OYSTER TOP UP AUTO TOP UP,Peoples Services Directorate,Travelling and Subsistence Allowances,A530,
http://opendatacommunities.org/id/london-borough-council/sutton,London Borough of Sutton,19/07/2018,1258796,20.00 , OYSTER AUTO-TOP UP,OYSTER TOP UP,Peoples Services Directorate,Travelling and Subsistence Allowances,A530,
http://opendatacommunities.org/id/london-borough-council/sutton,London Borough of Sutton,18/07/2018,1258796,20.00 , OYSTER AUTO-TOP UP,OYSTER TOP UP,Peoples Services Directorate,Travelling and Subsistence Allowances,A530,
http://opendatacommunities.org/id/london-borough-council/sutton,London Borough of Sutton,29/06/2018,1258796,20.00 , OYSTER AUTO-TOP UP,Oyster Top up,Peoples Services Directorate,Personal Requisites,F106,
http://opendatacommunities.org/id/london-borough-council/sutton,London Borough of Sutton,19/07/2018,1258796,10.00 , LBSUTTON,BIRTH CERT,Peoples Services Directorate,Personal Requisites,F106,
http://opendatacommunities.org/id/london-borough-council/sutton,London Borough of Sutton,19/07/2018,1258796,20.00 , LBSUTTON,BIRTH CERTIFICATES,Peoples Services Directorate,Personal Requisites,F106,
http://opendatacommunities.org/id/london-borough-council/sutton,London Borough of Sutton,28/06/2018,1258796,30.00 , LBSUTTON,BIRTH CERTS,Peoples Services Directorate,Personal Requisites,F106,
http://opendatacommunities.org/id/london-borough-council/sutton,London Borough of Sutton,19/07/2018,1258796,127.00 , HM PASSPORT,PASSPORT,Peoples Services Directorate,Personal Requisites,F106,
http://opendatacommunities.org/id/london-borough-council/sutton,London Borough of Sutton,19/07/2018,1258796,27.00 , WANDSWORTH COUNCIL,BIRTH CERTIFICATE,Peoples Services Directorate,Personal Requisites,F106,
http://opendatacommunities.org/id/london-borough-council/sutton,London Borough of Sutton,18/07/2018,1258796,30.00 , LBSUTTON,BIRTH CERT,Peoples Services Directorate,Personal Requisites,F106,
http://opendatacommunities.org/id/london-borough-council/sutton,London Borough of Sutton,09/07/2018,1258796,(12.00), LB CROYDON,BIRTH CERT REFUND,Peoples Services Directorate,Personal Requisites,F106,
http://opendatacommunities.org/id/london-borough-council/sutton,London Borough of Sutton,02/07/2018,1258796,20.00 , LBSUTTON,BIRTH CERTIFICATE,Peoples Services Directorate,Personal Requisites,F106,
http://opendatacommunities.org/id/london-borough-council/sutton,London Borough of Sutton,02/07/2018,1258796,20.00 , LBSUTTON,BIRTH CERT,Peoples Services Directorate,Personal Requisites,F106,
http://opendatacommunities.org/id/london-borough-council/sutton,London Borough of Sutton,09/07/2018,1258796,(54.00), HM PASSPORT OFFICE,PASSSPORT APPLICATION FOR LAC,Peoples Services Directorate,Personal Requisites,F106,
http://opendatacommunities.org/id/london-borough-council/sutton,London Borough of Sutton,13/07/2018,1258796,99.75 , POST OFFICE COUNTER,PASSPORT APP,Peoples Services Directorate,Personal Requisites,F106,
http://opendatacommunities.org/id/london-borough-council/sutton,London Borough of Sutton,13/07/2018,1258796,53.25 , GRO HM PASSPORT OFFICE,PASSPORT APP PURCHASED FOR LAC CLIENT,Peoples Services Directorate,Personal Requisites,F106,
http://opendatacommunities.org/id/london-borough-council/sutton,London Borough of Sutton,09/07/2018,1258796,54.00 , HM PASSPORT OFFICE,PASSPORT APP PURCHASED,Peoples Services Directorate,Personal Requisites,F106,
http://opendatacommunities.org/id/london-borough-council/sutton,London Borough of Sutton,09/07/2018,1258796,127.00 , HM PASSPORT,PASSPORT APPLICATON PURCHASE,Peoples Services Directorate,Personal Requisites,F106,
http://opendatacommunities.org/id/london-borough-council/sutton,London Borough of Sutton,29/06/2018,1258796,73.25 , POST OFFICE COUNTER,PASSPORT APPS,Peoples Services Directorate,Personal Requisites,F106,
http://opendatacommunities.org/id/london-borough-council/sutton,London Borough of Sutton,26/06/2018,1258796,18.50 , GRO HM PASSPORT OFFICE,PURCHASE OF BIRTH CERTS,Peoples Services Directorate,Personal Requisites,F106,
http://opendatacommunities.org/id/london-borough-council/sutton,London Borough of Sutton,05/07/2018,1258796,36.00 , LB CROYDON,BIRTH CERTS PURCHASE,Peoples Services Directorate,Personal Requisites,F106,
http://opendatacommunities.org/id/london-borough-council/sutton,London Borough of Sutton,09/07/2018,1258796,75.50 , HM PASSPORT OFFICE,PASSPORT OFFICE,Peoples Services Directorate,Personal Requisites,F106,
http://opendatacommunities.org/id/london-borough-council/sutton,London Borough of Sutton,29/06/2018,1258796,73.25 , POST OFFICE COUNTER,PASSPORT APPS,Peoples Services Directorate,Personal Requisites,F106,
http://opendatacommunities.org/id/london-borough-council/sutton,London Borough of Sutton,29/06/2018,1258796,73.25 , POST OFFICE COUNTER,PASSPORT APPS,Peoples Services Directorate,Personal Requisites,F106,
http://opendatacommunities.org/id/london-borough-council/sutton,London Borough of Sutton,29/06/2018,1258796,73.25 , POST OFFICE COUNTER,PASSPORT APPS,Peoples Services Directorate,Personal Requisites,F106,
http://opendatacommunities.org/id/london-borough-council/sutton,London Borough of Sutton,29/06/2018,1258796,73.25 , POST OFFICE COUNTER,PASSPORT APP,Peoples Services Directorate,Personal Requisites,F106,
http://opendatacommunities.org/id/london-borough-council/sutton,London Borough of Sutton,02/07/2018,1258796,12.00 , LB CROYDON,BIRTH CERT,Peoples Services Directorate,Other-Materials,F115,
http://opendatacommunities.org/id/london-borough-council/sutton,London Borough of Sutton,29/06/2018,1258796,20.00 , OYSTER AUTO-TOP UP,OYSTER TOP UP,Peoples Services Directorate,Other-Materials,F115,
http://opendatacommunities.org/id/london-borough-council/sutton,London Borough of Sutton,27/06/2018,1258796,74.16 , ANCESTRYDNA GBP,DNA TEST,Peoples Services Directorate,Children Assessments,G329,
http://opendatacommunities.org/id/london-borough-council/sutton,London Borough of Sutton,13/07/2018,1258796,20.00 , OYSTER AUTO-TOP UP,OYSTER TOP UP,Peoples Services Directorate,Travelling and Subsistence Allowances,A530,
http://opendatacommunities.org/id/london-borough-council/sutton,London Borough of Sutton,13/07/2018,1258796,163.00 , TRAVELODGE,TRAVELODGE BOUGHT FSCP TEAM,Peoples Services Directorate,Travelling and Subsistence Allowances,A530,
http://opendatacommunities.org/id/london-borough-council/sutton,London Borough of Sutton,14/07/2018,1258796,20.00 , OYSTER AUTO-TOP UP,OYSTER TOP UP,Peoples Services Directorate,Travelling and Subsistence Allowances,A530,
http://opendatacommunities.org/id/london-borough-council/sutton,London Borough of Sutton,07/07/2018,1258796,20.00 , OYSTER AUTO-TOP UP,OYSTER TOP UP ON LINE,Peoples Services Directorate,Travelling and Subsistence Allowances,A530,
http://opendatacommunities.org/id/london-borough-council/sutton,London Borough of Sutton,08/07/2018,1258796,20.00 , OYSTER AUTO-TOP UP,OYSTER TOP,Peoples Services Directorate,Travelling and Subsistence Allowances,A530,
http://opendatacommunities.org/id/london-borough-council/sutton,London Borough of Sutton,06/07/2018,1258796,20.00 , OYSTER AUTO-TOP UP,OYSTER TOP UP,Peoples Services Directorate,Travelling and Subsistence Allowances,A530,
http://opendatacommunities.org/id/london-borough-council/sutton,London Borough of Sutton,06/07/2018,1258796,20.00 , OYSTER AUTO-TOP UP,OYSTER TOP UP ON LINE,Peoples Services Directorate,Travelling and Subsistence Allowances,A530,
http://opendatacommunities.org/id/london-borough-council/sutton,London Borough of Sutton,26/06/2018,1258796,20.00 , OYSTER BUS AUTOTOP,OYSTER TOP UP,Peoples Services Directorate,Travelling and Subsistence Allowances,A530,
http://opendatacommunities.org/id/london-borough-council/sutton,London Borough of Sutton,18/07/2018,1258796,20.00 , OYSTER AUTO-TOP UP,OYSTER TOP UP,Peoples Services Directorate,Travelling and Subsistence Allowances,A530,
http://opendatacommunities.org/id/london-borough-council/sutton,London Borough of Sutton,05/07/2018,1258796,199.00 , UKBA6278368574,ADVERTISING,Peoples Services Directorate,Recruitment Expenses,A531,
http://opendatacommunities.org/id/london-borough-council/sutton,London Borough of Sutton,04/07/2018,1258796,13.95 , AMAZON EU,BOOKS,Peoples Services Directorate,Personal Requisites,F106,
http://opendatacommunities.org/id/london-borough-council/sutton,London Borough of Sutton,24/07/2018,1258796,18.50 , GRO HM PASSPORT OFFICE,BIRTH CERTIFICATES,Peoples Services Directorate,Personal Requisites,F106,
http://opendatacommunities.org/id/london-borough-council/sutton,London Borough of Sutton,19/07/2018,1258796,10.00 , LBSUTTON,BIRTH CERTIFICATE,Peoples Services Directorate,Personal Requisites,F106,
http://opendatacommunities.org/id/london-borough-council/sutton,London Borough of Sutton,19/07/2018,1258796,127.00 , HM PASSPORT,PASSPORTS,Peoples Services Directorate,Personal Requisites,F106,
http://opendatacommunities.org/id/london-borough-council/sutton,London Borough of Sutton,04/07/2018,1258796,25.83 , KENT COUNTY COUNCIL,31.00  F106 0312 9999 - BIRTH CERT WRAY,Peoples Services Directorate,Personal Requisites,F106,
http://opendatacommunities.org/id/london-borough-council/sutton,London Borough of Sutton,19/07/2018,1258796,37.00 , WANDSWORTH COUNCIL,BIRTH CERTIFICATE,Peoples Services Directorate,Personal Requisites,F106,
http://opendatacommunities.org/id/london-borough-council/sutton,London Borough of Sutton,28/06/2018,1258796,30.00 , LBSUTTON,BIRTH CERTS,Peoples Services Directorate,Personal Requisites,F106,
http://opendatacommunities.org/id/london-borough-council/sutton,London Borough of Sutton,27/06/2018,1258796,9.25 , GRO HM PASSPORT OFFICE,PASSPORTS GENERAL REGISTER OFFICE,Peoples Services Directorate,Personal Requisites,F106,
http://opendatacommunities.org/id/london-borough-council/sutton,London Borough of Sutton,09/07/2018,1258796,30.00 , LBSUTTON,BIRTH CERT,Peoples Services Directorate,Personal Requisites,F106,
http://opendatacommunities.org/id/london-borough-council/sutton,London Borough of Sutton,12/06/2018,1258796,(18.50), GRO HM PASSPORT OFFICE,BIRTH CERT REFUND,Peoples Services Directorate,Personal Requisites,F106,
http://opendatacommunities.org/id/london-borough-council/sutton,London Borough of Sutton,04/07/2018,1258796,67.77 , AMAZON EU,BOOKS,Peoples Services Directorate,Personal Requisites,F106,
http://opendatacommunities.org/id/london-borough-council/sutton,London Borough of Sutton,19/07/2018,1258796,31.50 , LEWISHAM COUNCIL INT,BIRTH CERTIFICATE,Peoples Services Directorate,Other-Materials,F115,
http://opendatacommunities.org/id/london-borough-council/sutton,London Borough of Sutton,06/07/2018,1258796,1.98 , AMAZON UK MARKETPLACE,BOOKS FOR THE FOSTERING ADOPTION TEAM.,Peoples Services Directorate,Materials - General,F100,
http://opendatacommunities.org/id/london-borough-council/sutton,London Borough of Sutton,06/07/2018,1258796,4.02 , AMAZON UK MARKETPLACE,OOKS FOR THE FOSTERING ADOPTION TEAM.,Peoples Services Directorate,Materials - General,F100,
http://opendatacommunities.org/id/london-borough-council/sutton,London Borough of Sutton,06/07/2018,1258796,4.99 , AMAZON UK MARKETPLACE,OOKS FOR THE FOSTERING ADOPTION TEAM.,Peoples Services Directorate,Materials - General,F100,
http://opendatacommunities.org/id/london-borough-council/sutton,London Borough of Sutton,05/07/2018,1258796,23.68 , AMAZON UK MARKETPLACE,BOOKS FOR THE FOSTERING ADOPTION TEAM.,Peoples Services Directorate,Materials - General,F100,
http://opendatacommunities.org/id/london-borough-council/sutton,London Borough of Sutton,05/07/2018,1258796,6.55 , AMAZON UK MARKETPLACE,BOOKS FOR THE FOSTERING ADOPTION TEAM.,Peoples Services Directorate,Materials - General,F100,
http://opendatacommunities.org/id/london-borough-council/sutton,London Borough of Sutton,05/07/2018,1258796,8.50 , AMAZON EU,BOOKS FOR THE FOSTERING ADOPTION TEAM.,Peoples Services Directorate,Materials - General,F100,
http://opendatacommunities.org/id/london-borough-council/sutton,London Borough of Sutton,05/07/2018,1258796,15.95 , AMAZON EU,BOOKS FOR THE FOSTERING ADOPTION TEAM.,Peoples Services Directorate,Materials - General,F100,
http://opendatacommunities.org/id/london-borough-council/sutton,London Borough of Sutton,16/07/2018,1258796,83.32 , AMAZON UK MARKETPLACE,BOOKS BOUGHT FOR FOSTERING AMAZON HAS SPLIT DOWN THE COSTS,Peoples Services Directorate,Personal Requisites,F106,
http://opendatacommunities.org/id/london-borough-council/sutton,London Borough of Sutton,10/07/2018,1258796,67.71 , BRITISH A,BA FLIGHT TO GLASGOW,Peoples Services Directorate,Travelling and Subsistence Allowances,A530,
http://opendatacommunities.org/id/london-borough-council/sutton,London Borough of Sutton,10/07/2018,1258796,275.83 , PREMIER INN,PREMIER INN IN GLASGOW,Peoples Services Directorate,Travelling and Subsistence Allowances,A530,
http://opendatacommunities.org/id/london-borough-council/sutton,London Borough of Sutton,09/07/2018,1258796,54.17 , HOTEL MARINERS LTD,HOTEL MARINERS,Peoples Services Directorate,Travelling and Subsistence Allowances,A530,
http://opendatacommunities.org/id/london-borough-council/sutton,London Borough of Sutton,29/06/2018,1258796,70.83 , WWW.FISHGUARDBAYHOTEL.,HOTEL,Peoples Services Directorate,Travelling and Subsistence Allowances,A530,
http://opendatacommunities.org/id/london-borough-council/sutton,London Borough of Sutton,06/07/2018,1258796,99.99 , HOME FURNISHINGS UK LT,BED,Peoples Services Directorate,Client Care/Assistance,H301,
http://opendatacommunities.org/id/london-borough-council/sutton,London Borough of Sutton,10/07/2018,1258796,10.50 , AMAZON UK MARKETPLACE,PORTAGE ITEM,Peoples Services Directorate,Books,F006,
http://opendatacommunities.org/id/london-borough-council/sutton,London Borough of Sutton,13/07/2018,1258796,20.00 , OYSTER AUTO-TOP UP,OYSTER CARD TOP UP,"Environment, Housing & Regeneration Directorate",General Office Expenses,F235,
http://opendatacommunities.org/id/london-borough-council/sutton,London Borough of Sutton,18/07/2018,1258796,220.32 , WWW.ETCVENUES.CO.UK,EH&R AWAY DAY FOR DMT,"Environment, Housing & Regeneration Directorate",Fees - Room Hire,F290,
http://opendatacommunities.org/id/london-borough-council/sutton,London Borough of Sutton,19/07/2018,1258796,100.00 , BLUELINELEARNINGLTD,ONLINE PACE TRAINING X 2 DR AND MW,"Environment, Housing & Regeneration Directorate",Training - Course Fees,A520,
http://opendatacommunities.org/id/london-borough-council/sutton,London Borough of Sutton,28/06/2018,1258796,39.97 , WWW.TILLROLLKING.CO.UK,RECEIPT ROLLS FOR S&B PRINTER,"Environment, Housing & Regeneration Directorate",Materials - General,F100,
http://opendatacommunities.org/id/london-borough-council/sutton,London Borough of Sutton,25/07/2018,1258796,392.03 , WWW.SIGNFIX.CO.UK,FIXING AND TOOL FOR SIGN ERECTION ON CONCRETE POSTS,"Environment, Housing & Regeneration Directorate",Other-Materials,F115,
http://opendatacommunities.org/id/london-borough-council/sutton,London Borough of Sutton,03/07/2018,1258796,158.40 , WIX.COM,TRAINING COURSE OF CLLR,"Environment, Housing & Regeneration Directorate",Staff Advertising,A500,
http://opendatacommunities.org/id/london-borough-council/sutton,London Borough of Sutton,09/07/2018,1258796,279.00 , PREMIER INN,ACCOMMODATION FOR TRAINING COURSE,Chief Executive's Directorate,Conferences - Travel and Subsistence,A526,
http://opendatacommunities.org/id/london-borough-council/sutton,London Borough of Sutton,09/07/2018,1258796,145.95 , TRAINLINE,TRAVEL TO TRAINING,Chief Executive's Directorate,Conferences - Travel and Subsistence,A526,
http://opendatacommunities.org/id/london-borough-council/sutton,London Borough of Sutton,19/07/2018,1258796,82.25 , SAINSBURYS TO YOU 0038,REFRESHMENTS FOR WHITEHALL LAUNCH,Chief Executive's Directorate,Repairs to Administrative Equipment,F030,
http://opendatacommunities.org/id/london-borough-council/sutton,London Borough of Sutton,09/07/2018,1258796,6.66 , AMAZON PRIME,AMAZON PRIDE  WILL BE REFUNDED AS HAVE CANCELLED THIS,Chief Executive's Directorate,Repairs to Administrative Equipment,F030,
http://opendatacommunities.org/id/london-borough-council/sutton,London Borough of Sutton,16/07/2018,1258796,17.69 , ASDA STORES,REFRESHMENTS,Resources Directorate,General Office Expenses,F235,
http://opendatacommunities.org/id/london-borough-council/sutton,London Borough of Sutton,14/07/2018,1258796,22.50 , ASDA STORES,CAKES FOR RUSSETTINGS LAUNCH,Resources Directorate,General Office Expenses,F235,
http://opendatacommunities.org/id/london-borough-council/sutton,London Borough of Sutton,14/07/2018,1258796,19.26 , TESCO STORE 3235,REFRESHMENTS,Resources Directorate,General Office Expenses,F235,
http://opendatacommunities.org/id/london-borough-council/sutton,London Borough of Sutton,10/07/2018,1258796,42.47 , WOODCOTE GREEN,PLANTS FOR GARDEN,Resources Directorate,General Office Expenses,F235,
http://opendatacommunities.org/id/london-borough-council/sutton,London Borough of Sutton,09/07/2018,1258796,15.00 , WICKES,PLANT POTS/COMPOST,Resources Directorate,General Office Expenses,F235,
http://opendatacommunities.org/id/london-borough-council/sutton,London Borough of Sutton,08/07/2018,1258796,12.50 , LOWER MORDEN GARDE,PLANTS FOR GARDEN,Resources Directorate,General Office Expenses,F235,
http://opendatacommunities.org/id/london-borough-council/sutton,London Borough of Sutton,03/07/2018,1258796,30.62 , SAINSBURYS 0038,MUSIC WEDDINGS,Resources Directorate,General Office Expenses,F235,
http://opendatacommunities.org/id/london-borough-council/sutton,London Borough of Sutton,03/07/2018,1258796,8.32 , SPOTIFY P06931BB28,MUSIC FOR WEDDINGS,Resources Directorate,General Office Expenses,F235,
http://opendatacommunities.org/id/london-borough-council/sutton,London Borough of Sutton,12/07/2018,1258796,19.05 , B & Q 1191,STEPLADDER,Resources Directorate,Miscellaneous Costs,G499,
http://opendatacommunities.org/id/london-borough-council/sutton,London Borough of Sutton,11/07/2018,1258796,11.62 , AMAZON EU,CHALK BOARD FOR WHITEHALL TEA ROOM,Chief Executive's Directorate,Records and Casettes,F007,
http://opendatacommunities.org/id/london-borough-council/sutton,London Borough of Sutton,26/06/2018,1258796,419.93 , AMAZON UK MARKETPLACE,AIR COOLERS - LIFE CENTRE,"Environment, Housing & Regeneration Directorate",Other Equipment - Purchase,F015,
http://opendatacommunities.org/id/london-borough-council/sutton,London Borough of Sutton,01/07/2018,1258796,20.00 , OYSTER AUTO-TOP UP,OYSTER CARD TOP UP,HRA,General Office Expenses,F235,
http://opendatacommunities.org/id/london-borough-council/sutton,London Borough of Sutton,22/07/2018,1258796,20.00 , OYSTER AUTO-TOP UP,TEAM OYSTER,Chief Executive's Directorate,Travelling and Subsistence Allowances,A530,
http://opendatacommunities.org/id/london-borough-council/sutton,London Borough of Sutton,19/07/2018,1258796,20.00 , OYSTER AUTO-TOP UP,TEAM OYSTER,Chief Executive's Directorate,Travelling and Subsistence Allowances,A530,
http://opendatacommunities.org/id/london-borough-council/sutton,London Borough of Sutton,14/07/2018,1258796,20.00 , OYSTER AUTO-TOP UP,TEAM OYSTER,Chief Executive's Directorate,Travelling and Subsistence Allowances,A530,
http://opendatacommunities.org/id/london-borough-council/sutton,London Borough of Sutton,14/07/2018,1258796,20.00 , OYSTER AUTO-TOP UP,TEAM OYSTER,Chief Executive's Directorate,Travelling and Subsistence Allowances,A530,
http://opendatacommunities.org/id/london-borough-council/sutton,London Borough of Sutton,13/07/2018,1258796,20.00 , OYSTER AUTO-TOP UP,TEAM OYSTER,Chief Executive's Directorate,Travelling and Subsistence Allowances,A530,
http://opendatacommunities.org/id/london-borough-council/sutton,London Borough of Sutton,06/07/2018,1258796,20.00 , OYSTER AUTO-TOP UP,TEAM OYSTER,Chief Executive's Directorate,Travelling and Subsistence Allowances,A530,
http://opendatacommunities.org/id/london-borough-council/sutton,London Borough of Sutton,04/07/2018,1258796,63.32 , WWW.GEAR4MUSIC.COM,TEAM OYSTER,Chief Executive's Directorate,Travelling and Subsistence Allowances,A530,
http://opendatacommunities.org/id/london-borough-council/sutton,London Borough of Sutton,04/07/2018,1258796,20.00 , OYSTER AUTO-TOP UP,MICROPHONES,Chief Executive's Directorate,Purchase of IT Equipment,F380,
http://opendatacommunities.org/id/london-borough-council/sutton,London Borough of Sutton,11/07/2018,1258796,91.50 , TRAINLINE,TRAIN TICKETS TO ATTEND LEADERSHIP CONFERENCE 18.07.18 - 19.07.18,Chief Executive's Directorate,Recruitment Expenses,A531,
http://opendatacommunities.org/id/london-borough-council/sutton,London Borough of Sutton,16/07/2018,1258796,3.15 , MAILCHIMP,WEB HOSTING,Chief Executive's Directorate,Fees - Computer Software,F384,
http://opendatacommunities.org/id/london-borough-council/sutton,London Borough of Sutton,14/07/2018,1258796,114.46 , MAILCHIMP    MONTHLY,WEB HOSTING,Chief Executive's Directorate,Fees - Computer Software,F384,
http://opendatacommunities.org/id/london-borough-council/sutton,London Borough of Sutton,05/07/2018,1258796,700.00 , WM MORRISONS,MORRISONS FOOD VOUCHERS,Resources Directorate,C.C.A Travel & Subsistance,H212,
http://opendatacommunities.org/id/london-borough-council/sutton,London Borough of Sutton,28/06/2018,1258796,56.70 , FLAGMAKERS,RAINBOW FLAG FOR SUTTON HIGH STREET,Resources Directorate,Materials - General,F100,
http://opendatacommunities.org/id/london-borough-council/sutton,London Borough of Sutton,29/06/2018,1258796,21.00 , WWW.DIRECT-FUNDRAISING,LABELS FOR MAYOR'S CHARITY BUCKETS,Resources Directorate,Materials - General,F100,
http://opendatacommunities.org/id/london-borough-council/sutton,London Borough of Sutton,27/06/2018,1258796,15.99 , ARGOS LTD,SELFIE STICK FOR THE MAYORAL OFFICE,Resources Directorate,Materials - General,F100,
http://opendatacommunities.org/id/london-borough-council/sutton,London Borough of Sutton,29/06/2018,1258796,24.85 , EFRAME.CO.UK,PHOTO FRAME FOR COUNCILLOR END OF TERM PHOTO,Resources Directorate,General Office Expenses,F235,
http://opendatacommunities.org/id/london-borough-council/sutton,London Borough of Sutton,23/07/2018,1258796,59.00 , SHOECARE,16 KEYS CUT FOR CONSERVATIVE ROOM FROM TIMPSONS,Resources Directorate,Materials - General,F100,
http://opendatacommunities.org/id/london-borough-council/sutton,London Borough of Sutton,26/06/2018,1258796,239.94 , EB  SEMINAR BEING AN E,PLACE ON TRAINING LGIU - BEING AND EFFECTIVE COUNCILLOR FOR CLLR - 10 JULY,Resources Directorate,Members Expenses - Other,F402,
http://opendatacommunities.org/id/london-borough-council/sutton,London Borough of Sutton,04/07/2018,1258796,31.64 , AMAZON EU,MEMORY CARDS FOR MEDIA CAMERA,"Environment, Housing & Regeneration Directorate",Other Equipment - Purchase,F015,
http://opendatacommunities.org/id/london-borough-council/sutton,London Borough of Sutton,25/07/2018,1258796,5.40 , B & Q 1191,SMALL OFFICE FAN FOR OFFICE,"Environment, Housing & Regeneration Directorate",Other Equipment - Purchase,F015,
http://opendatacommunities.org/id/london-borough-council/sutton,London Borough of Sutton,04/07/2018,1258796,149.17 , WWW.JOHNLEWIS.COM,REPLACEMENT FRIDGE FOR OFFICE,"Environment, Housing & Regeneration Directorate",Other Equipment - Purchase,F015,
http://opendatacommunities.org/id/london-borough-council/sutton,London Borough of Sutton,02/07/2018,1258796,92.50 , B&Q DIRECT,FANS FOR OFFICE,"Environment, Housing & Regeneration Directorate",Other Equipment - Purchase,F015,
http://opendatacommunities.org/id/london-borough-council/sutton,London Borough of Sutton,24/07/2018,1258796,165.00 , WWW.APM.ORG.UK,APM MMMBERSHIP  RENEWAL,"Environment, Housing & Regeneration Directorate",Subscriptions - General,F450,
http://opendatacommunities.org/id/london-borough-council/sutton,London Borough of Sutton,24/07/2018,1258796,220.00 , SECURITY INDUSTRY,SIA CCTV  RENEWAL,"Environment, Housing & Regeneration Directorate",Subscriptions - General,F450,
http://opendatacommunities.org/id/london-borough-council/sutton,London Borough of Sutton,12/07/2018,1258796,356.00 , MARRIOTT,HOTEL ACCOMMODATION TO ATTEND CIPFA CONFERENCE IN BOURNEMOUTH,Resources Directorate,Conferences - Travel and Subsistence,A526,
http://opendatacommunities.org/id/london-borough-council/sutton,London Borough of Sutton,05/07/2018,1258796,20.00 , OYSTER AUTO-TOP UP,OYSTER TOP UP,Resources Directorate,Travelling and Subsistence Allowances,A530,
http://opendatacommunities.org/id/london-borough-council/sutton,London Borough of Sutton,29/06/2018,1258796,20.00 , OYSTER AUTO-TOP UP,OYSTER TOP UP,Resources Directorate,Travelling and Subsistence Allowances,A530,
http://opendatacommunities.org/id/london-borough-council/sutton,London Borough of Sutton,11/07/2018,1258796,20.00 , OYSTER AUTO-TOP UP,OYSTER TOP UP,Resources Directorate,Recruitment Expenses,A531,
http://opendatacommunities.org/id/london-borough-council/sutton,London Borough of Sutton,26/06/2018,1258796,"3,958.33 ", CREDIT CONTROL,MORRISONS VOUCHERS FOR CRISIS LOAN AND GRANT SCHEME,Resources Directorate,Grants,F473,
http://opendatacommunities.org/id/london-borough-council/sutton,London Borough of Sutton,26/06/2018,1258796,"3,958.33 ", CREDIT CONTROL,MORRISONS VOUCHERS FOR CRISIS LOAN AND GRANT SCHEME,Resources Directorate,Grants,F473,
http://opendatacommunities.org/id/london-borough-council/sutton,London Borough of Sutton,02/07/2018,1258796,133.32 , WWW.ARGOS.CO.UK,PURCHASE OF FRIDGE FREEZER FOR CRISIS GRANT,Resources Directorate,Grants,F473,
http://opendatacommunities.org/id/london-borough-council/sutton,London Borough of Sutton,08/07/2018,1258796,33.33 , OYSTER AUTO-TOP UP,OYSTER TOP UP FOR BENEFITS STAFF TRAVEL,Resources Directorate,Travelling and Subsistence Allowances,A530,
http://opendatacommunities.org/id/london-borough-council/sutton,London Borough of Sutton,24/07/2018,1258796,10.00 , WWW.GOV.UK,PASPORT,Resources Directorate,General Office Expenses,F235,
http://opendatacommunities.org/id/london-borough-council/sutton,London Borough of Sutton,04/07/2018,1258796,4.00 , WWW.MIB.ORG.UK,TO CARRY OUT A ONE-OFF SEARCH FOR VEHICLE INSURANCE DETAILS IN RELATION TO A CLAIM,Resources Directorate,Insurance Claims,F332,
http://opendatacommunities.org/id/london-borough-council/sutton,London Borough of Sutton,28/06/2018,1258796,139.68 , FLAGMAKERS,RAINBOW FLAG ORDERED FOR MITIE SUTTON CIVIC CENTRE,Resources Directorate,Furniture - Purchase,F080,
http://opendatacommunities.org/id/london-borough-council/sutton,London Borough of Sutton,28/06/2018,1258796,23.59 , PAYPAL  MRFLAG,RAF FLAG,Resources Directorate,Furniture - Purchase,F080,
http://opendatacommunities.org/id/london-borough-council/sutton,London Borough of Sutton,23/07/2018,1258796,169.50 , WWW.CORERFID.COM,LABEL ITEMS FOR CARERS - START SERVICE,Peoples Services Directorate,Domestic Equipment,F004,
http://opendatacommunities.org/id/london-borough-council/sutton,London Borough of Sutton,04/07/2018,1258796,24.45 , AMAZON EU,SAFEGUARDING BOOKS,Peoples Services Directorate,Personal Requisites,F106,
